bitfinex/quotes_ETHUSD_20241030
["timestamp","ask_amount","ask_price","bid_price","bid_amount"]
[1730300902002,3.6872,2712.1,2711.8,0.55]
[1730300902496,3.6869,2712.3,2711.7,0.4735]
[1730300902699,3.68758,2711.8,2711.5,0.55]
[1730300903330,7.37524,2711.8,2711.5,0.55]
[1730300903637,7.3753,2711.8,2711.5,0.55]
[1730300903839,3.68758,2711.8,2711.5,0.55]
[1730300905037,3.68745,2711.9,2711.5,0.55]
[1730300905536,3.68758,2711.8,2711.5,0.55]
[1730300906609,0.8012,2711.7,2711.2,0.4735]
[1730300906810,0.8012,2711.7,2711.2,4.23838]
[1730300906811,3.68794,2711.6,2711.2,4.23838]
[1730300907017,3.68794,2711.6,2711.2,0.55]
[1730300907567,3.68794,2711.6,2711.2,4.2384]
[1730300908120,0.8012,2711.7,2711.2,4.2384]
[1730300908459,3.68763,2711.8,2711.3,3.68824]
[1730300908761,3.68779,2711.7,2711.2,4.23838]
[1730300908929,3.68779,2711.7,2711.3,3.68825]
[1730300909340,3.68779,2711.7,2711.2,4.23838]
[1730300909649,3.68779,2711.7,2711.3,3.68824]
[1730300910026,3.68786,2711.6,2711.2,5.42836122]
[1730300910333,3.68779,2711.7,2711.2,5.42840122]
[1730300910513,3.68779,2711.7,2711.2,9.11670122]
[1730300910717,3.68786,2711.6,2711.2,5.42836122]
[1730300911054,3.68773,2711.7,2711.2,9.11667122]
[1730300911218,3.68773,2711.7,2711.2,5.42836122]
[1730300911443,3.68792,2711.6,2711.2,5.42836122]
[1730300912776,3.68792,2711.6,2711.2,1.74006122]
[1730300912946,0.8122,2711.4,2710.6,0.3691]
[1730300913147,3.68902,2710.8,2710.5,0.4735]
[1730300913351,3.68902,2710.8,2710.7,0.38513149]
[1730300913578,3.68902,2710.8,2710.5,0.4735]
[1730300913579,0.8122,2710.9,2710.4,0.07378229]
[1730300913845,3.68894,2710.8,2710.4,0.57756538]
[1730300914046,7.37799,2710.8,2710.4,0.07378233]
[1730300914249,3.689,2710.8,2710.4,0.07378233]
[1730300915175,3.68914,2710.7,2710.4,0.55]
[1730300915376,3.689,2710.8,2710.4,0.55]
[1730300915578,3.68923,2710.6,2710.4,0.55]
[1730300916118,3.68935,2710.5,2710.2,0.55]
[1730300916396,3.68909,2710.7,2710.2,0.55]
[1730300916555,3.68894,2710.8,2710.2,4.23965]
[1730300916998,0.8122,2710.9,2710.2,4.23965]
[1730300917171,3.68908,2710.7,2710.2,7.92935]
[1730300917794,3.68908,2710.7,2710.2,7.92931]
[1730300917968,3.68908,2710.7,2710.2,5.48769804]
[1730300919203,7.37798,2710.8,2710.4,0.55]
[1730300919510,3.68909,2710.7,2710.4,0.55]
[1730300921209,3.68895,2710.8,2710.4,0.55]
[1730300921769,3.68895,2710.8,2710.5,0.05034345]
[1730300921973,3.68908,2710.7,2710.5,0.05034345]
[1730300922366,3.68922,2710.6,2710.5,0.05034345]
[1730300922579,3.68914,2710.7,2710.5,0.05034345]
[1730300923929,3.68922,2710.6,2710.5,0.05034345]
[1730300924285,3.68894,2710.8,2710.5,0.05034345]
[1730300924607,3.68909,2710.7,2710.5,0.05034345]
[1730300929387,7.37829,2710.7,2710.5,0.05034345]
[1730300929632,3.68909,2710.7,2710.5,0.05034345]
[1730300929934,3.68922,2710.6,2710.5,0.05034345]
[1730300930435,3.68896,2710.8,2710.5,0.05034345]
[1730300930602,3.6891,2710.7,2710.5,0.05034345]
[1730300932031,3.68895,2710.8,2710.5,0.05034345]
[1730300932331,3.68908,2710.7,2710.5,0.05034345]
[1730300932936,3.18908,2710.7,2710.5,0.05034345]
[1730300933237,4.5011,2710.9,2710.5,0.05034345]
[1730300933387,3.68904,2710.8,2710.5,0.05034345]
[1730300934331,3.68917,2710.7,2710.5,0.05034345]
[1730300935124,0.8122,2710.9,2710.5,0.05034345]
[1730300935321,7.37798,2710.8,2710.5,0.05034345]
[1730300935575,3.68896,2710.8,2710.5,0.05034345]
[1730300935928,7.37802,2710.8,2710.5,0.05034345]
[1730300936123,3.68896,2710.8,2710.5,0.05034345]
[1730300936370,3.68908,2710.7,2710.5,0.05034345]
[1730300936654,3.68909,2710.7,2710.5,0.05034345]
[1730300937039,3.68898,2710.8,2710.5,0.05034345]
[1730300937261,3.68909,2710.7,2710.5,0.05034345]
[1730300938244,3.68922,2710.6,2710.5,0.05034345]
[1730300938647,3.68909,2710.7,2710.5,0.05034345]
[1730300938846,3.68922,2710.6,2710.5,0.05034345]
[1730300939046,3.68909,2710.7,2710.3,0.55]
[1730300939356,3.68922,2710.6,2710.5,0.04891104]
[1730300939562,3.68922,2710.6,2710.4,0.04895721]
[1730300939742,3.68922,2710.6,2710.5,0.0489073]
[1730300940130,3.68937,2710.5,2710.3,1.37132322]
[1730300940354,3.68922,2710.6,2710.3,1.37132322]
[1730300940667,3.68936,2710.5,2710.3,1.37132322]
[1730300941043,3.68936,2710.5,2710.3,0.82132322]
[1730300941243,3.68936,2710.5,2710.2,0.55]
[1730300942052,3.68924,2710.6,2710.2,0.55]
[1730300942251,3.68917,2710.7,2710.2,0.55]
[1730300942464,3.68922,2710.6,2710.2,0.55]
[1730300942853,0.8122,2710.9,2710.2,0.55]
[1730300943049,3.68963,2710.3,2710.0,0.5775782]
[1730300943247,4.5064,2710.4,2710.0,0.5775782]
[1730300943450,4.5064,2710.4,2709.9,0.27537793]
[1730300943649,3.68986,2710.2,2709.8,1.05114287]
[1730300943883,4.50647,2710.4,2709.9,3.6901]
[1730300944258,4.50647,2710.4,2709.8,1.32654958]
[1730300944259,3.68979,2710.2,2709.8,4.74146639]
[1730300944447,3.6898,2710.2,2709.8,0.97518696]
[1730300944650,3.6898,2710.2,2709.8,0.50168696]
[1730300946294,3.6898,2710.2,2709.7,3.96576809]
[1730300946295,3.6901,2710.0,2709.7,0.27539809]
[1730300946599,0.8127,2709.9,2709.7,0.27539809]
[1730300946761,4.50256,2710.2,2709.7,3.96574809]
[1730300947091,3.68991,2710.1,2709.7,4.80599502]
[1730300947247,3.68991,2710.1,2709.7,1.11564502]
[1730300949035,3.68991,2710.1,2709.7,4.80608502]
[1730300949590,3.6897,2710.3,2709.8,4.1708985]
[1730300949808,3.6897,2710.3,2709.8,4.6443985]
[1730300950593,3.68976,2710.2,2709.8,4.6443985]
[1730300951294,8.19882,2710.4,2709.8,4.6443985]
[1730300951489,8.19882,2710.4,2709.9,0.47182013]
[1730300951689,3.68967,2710.3,2709.9,0.47182013]
[1730300951916,3.68967,2710.3,2710.0,0.04316091]
[1730300952491,4.5092,2710.4,2709.9,3.69015]
[1730300952707,4.44468,2710.7,2710.2,4.23969]
[1730300952909,4.44468,2710.7,2710.3,3.68962]
[1730300953208,3.68932,2710.6,2710.3,0.04299989]
[1730300953429,3.68932,2710.6,2710.2,1.0235]
[1730300953637,4.44468,2710.7,2710.4,0.04295372]
[1730300953947,3.68935,2710.5,2710.2,0.55]
[1730300954153,3.68935,2710.5,2710.1,0.55]
[1730300954720,3.68935,2710.5,2710.1,4.23987]
[1730300954909,3.68935,2710.5,2710.1,5.1587405]
[1730300955520,3.6896,2710.4,2709.9,0.785385]
[1730300955716,3.68969,2710.3,2709.8,3.69023]
[1730300956025,3.6896,2710.4,2709.9,3.69016]
[1730300956718,3.6896,2710.4,2709.9,7.38025]
[1730300956918,3.6896,2710.4,2709.9,7.3802]
[1730300957242,3.68963,2710.3,2710.0,1.02147653]
[1730300957442,4.48857,2710.2,2710.1,0.27607679]
[1730300957647,3.69007,2710.0,2709.8,0.27607679]
[1730300957835,3.69051,2709.7,2709.3,2.63062371]
[1730300958016,3.69051,2709.7,2709.4,0.27625877]
[1730300958221,3.69051,2709.7,2709.5,0.27625877]
[1730300958222,3.69058,2709.6,2709.5,0.27625877]
[1730300958448,3.69058,2709.6,2709.4,0.27625877]
[1730300958718,3.69058,2709.6,2709.5,0.27625877]
[1730300958916,4.47201,2709.7,2709.2,3.96731877]
[1730300959144,4.47201,2709.7,2709.2,4.14252378]
[1730300959568,3.69065,2709.6,2709.2,0.45146378]
[1730300959971,3.69065,2709.6,2709.3,0.27630506]
[1730300960265,3.69065,2709.6,2709.4,0.27630506]
[1730300960474,3.69065,2709.6,2709.1,4.16476]
[1730300960475,7.38134,2709.6,2709.2,0.27630506]
[1730300960770,3.69065,2709.6,2709.2,0.27630506]
[1730300961125,3.69065,2709.6,2709.3,0.27630506]
[1730300961669,3.69075,2709.5,2709.2,0.55]
[1730300961831,3.69075,2709.5,2709.2,0.82630506]
[1730300962549,3.69065,2709.6,2709.2,0.82630506]
[1730300962871,3.69079,2709.5,2709.2,0.27630506]
[1730300963054,3.69079,2709.5,2709.1,0.0738139]
[1730300963368,3.69079,2709.5,2709.1,3.7650539]
[1730300963526,3.69079,2709.5,2709.1,5.04381357]
[1730300963728,3.69079,2709.5,2709.2,0.27630506]
[1730300964329,4.47195,2709.7,2709.2,3.96740506]
[1730300964630,8.16251,2709.7,2709.2,3.96740506]
[1730300964847,4.47195,2709.7,2709.2,4.04122123]
[1730300965071,4.47195,2709.7,2709.2,4.98968632]
[1730300965372,3.69045,2709.7,2709.3,3.69098]
[1730300965521,3.69026,2709.9,2709.4,4.24084]
[1730300965522,3.69035,2709.8,2709.4,4.24084]
[1730300965723,3.69026,2709.9,2709.5,0.4735]
[1730300966352,3.69032,2709.8,2709.5,0.4735]
[1730300966653,3.69032,2709.8,2709.6,0.04063441]
[1730300966854,0.7684,2710.0,2709.6,0.04063441]
[1730300967052,3.69044,2709.7,2709.6,0.04063441]
[1730300967226,3.69044,2709.7,2709.4,0.55]
[1730300967443,3.69044,2709.7,2709.6,0.04063441]
[1730300967642,3.69044,2709.7,2709.4,0.55]
[1730300967878,3.69044,2709.7,2709.3,0.4735]
[1730300967879,3.69058,2709.6,2709.3,0.4735]
[1730300968262,7.38096,2709.7,2709.3,0.4735]
[1730300969067,3.69044,2709.7,2709.3,4.16444]
[1730300969311,3.69044,2709.7,2709.3,4.95737736]
[1730300969508,3.68969,2710.3,2708.9,1.08120557]
[1730300969509,0.7882,2709.6,2708.9,4.77272557]
[1730300969712,3.69091,2709.4,2709.0,0.82548494]
[1730300969867,3.69084,2709.5,2709.0,8.20816494]
[1730300970070,3.69084,2709.5,2709.1,0.92893705]
[1730300970883,3.69082,2709.5,2709.1,0.92893705]
[1730300971209,7.38162,2709.5,2709.1,0.92893705]
[1730300971411,3.6908,2709.5,2709.1,0.92893705]
[1730300972517,3.69088,2709.4,2709.1,0.92893705]
[1730300972718,3.6908,2709.5,2709.1,0.92893705]
[1730300973267,3.6908,2709.5,2709.2,0.86703692]
[1730300973804,4.47879,2709.6,2709.2,0.86703692]
[1730300974671,4.47879,2709.6,2709.2,4.55814692]
[1730300974911,3.69017,2709.9,2709.5,3.69068]
[1730300975111,0.8235,2710.1,2709.6,0.738149]
[1730300975112,3.6901,2710.0,2709.6,0.738149]
[1730300975528,4.51342,2710.1,2709.6,0.738149]
[1730300975529,4.51342,2710.1,2709.6,4.428719]
[1730300975819,4.51342,2710.1,2709.7,3.69038]
[1730300975994,4.51342,2710.1,2709.6,4.428719]
[1730300976197,4.51342,2710.1,2709.7,0.8119399]
[1730300979428,8.20343,2710.1,2709.7,0.8119399]
[1730300979809,3.69015,2710.0,2709.7,0.8119399]
[1730300980026,3.69015,2710.0,2709.6,0.55]
[1730300980396,3.68972,2710.3,2709.8,4.24017]
[1730300980618,3.68972,2710.3,2709.8,5.06154622]
[1730300980802,3.6897,2710.3,2709.8,5.06154622]
[1730300981219,7.3794,2710.3,2709.8,5.06154622]
[1730300981439,3.6897,2710.3,2709.8,5.06154622]
[1730300981589,3.6897,2710.3,2709.9,0.04061056]
[1730300982033,7.37942,2710.3,2709.9,0.04061056]
[1730300982195,3.6897,2710.3,2709.9,0.04061056]
[1730300983730,0.764,2710.4,2709.9,0.04061056]
[1730300983934,3.69003,2710.0,2709.9,0.04061056]
[1730300984148,3.69025,2709.9,2709.5,0.4735]
[1730300984309,3.69025,2709.9,2709.5,0.74921807]
[1730300984633,3.69025,2709.9,2709.5,4.43986807]
[1730300984841,3.0,2710.5,2710.0,0.4735]
[1730300985137,3.68914,2710.7,2710.2,4.23975]
[1730300985292,0.7658,2710.8,2710.0,0.4735]
[1730300985494,7.37913,2710.4,2710.0,0.4735]
[1730300985691,7.37912,2710.4,2710.0,0.4735]
[1730300985932,3.68969,2710.3,2710.0,0.4735]
[1730300986436,3.69012,2710.0,2709.8,0.27580214]
[1730300986735,3.69017,2709.9,2709.6,0.4735]
[1730300987089,3.69017,2709.9,2709.5,0.27580214]
[1730300987490,3.69037,2709.8,2709.5,0.27580214]
[1730300987728,4.48504,2709.9,2709.5,0.27580214]
[1730300988098,3.6904,2709.8,2709.5,0.27580214]
[1730300988324,3.6904,2709.8,2709.5,0.27589621]
[1730300988531,3.6903,2709.8,2709.5,0.27589621]
[1730300989015,3.6903,2709.8,2709.4,0.27589621]
[1730300989016,3.69069,2709.6,2709.4,0.27589621]
[1730300989189,3.69044,2709.7,2709.3,0.27589621]
[1730300989395,3.69044,2709.7,2709.4,0.27589621]
[1730300989396,3.69064,2709.6,2709.4,0.27589621]
[1730300989622,3.69064,2709.6,2709.3,0.27589621]
[1730300990312,3.69064,2709.6,2709.4,0.27589621]
[1730300990520,3.69064,2709.6,2709.3,0.27589621]
[1730300990819,3.69064,2709.6,2709.4,0.27589621]
[1730300991012,3.69064,2709.6,2709.3,0.27589621]
[1730300992213,3.69045,2709.7,2709.2,7.85563]
[1730300992415,3.69045,2709.7,2709.3,0.27604941]
[1730300992997,3.69045,2709.7,2709.4,0.27604941]
[1730300993535,3.69031,2709.8,2709.3,0.27604941]
[1730300993733,3.69031,2709.8,2709.4,0.27604941]
[1730300994063,4.48497,2709.9,2709.4,3.69077]
[1730300994247,8.17525,2709.9,2709.4,3.69077]
[1730300994403,8.17525,2709.9,2709.4,3.96681941]
[1730300994842,3.69038,2709.8,2709.4,3.69077]
[1730300995044,3.69038,2709.8,2709.4,3.96681941]
[1730300995340,3.0,2710.1,2709.6,3.69048]
[1730300995550,3.0,2710.1,2709.4,4.54553994]
[1730300995705,3.69011,2710.0,2709.4,0.9285882]
[1730300996046,3.69011,2710.0,2709.6,3.6905]
[1730300996335,3.69011,2710.0,2709.5,0.27604941]
[1730300996551,3.69017,2709.9,2709.5,0.27604941]
[1730300996698,3.69017,2709.9,2709.6,0.04070975]
[1730300996904,7.38023,2710.0,2709.6,0.04070975]
[1730300997206,3.69027,2709.9,2709.6,0.04070975]
[1730300997406,3.69011,2710.0,2709.6,0.04070975]
[1730300997607,3.69026,2709.9,2709.6,0.04070975]
[1730300998053,0.744191,2710.0,2709.6,0.04070975]
[1730300998232,3.69044,2709.7,2709.6,0.04070975]
[1730300998551,3.69044,2709.7,2709.4,0.27604941]
[1730300998740,4.45148,2709.8,2709.6,0.04070975]
[1730300998934,4.45148,2709.8,2709.5,0.27604941]
[1730300998935,4.45148,2709.8,2709.5,0.04075595]
[1730300999163,8.14191,2709.8,2709.7,0.04066356]
[1730300999313,3.69044,2709.7,2709.6,0.04070975]
[1730300999520,3.69044,2709.7,2709.2,7.85557]
[1730300999521,3.69044,2709.7,2709.3,0.27604941]
[1730300999756,3.69044,2709.7,2709.4,0.27604941]
[1730300999956,3.69044,2709.7,2709.3,0.27604941]
[1730301000169,0.7611,2709.8,2709.4,0.27604941]
[1730301000456,4.45141,2709.8,2709.3,4.38342141]
[1730301000619,4.45141,2709.8,2709.4,3.96688941]
[1730301000819,3.69059,2709.6,2709.5,0.27604941]
[1730301001020,3.69071,2709.5,2709.4,0.27604941]
[1730301001236,3.69085,2709.4,2709.3,0.27618023]
[1730301001615,6.68993,2710.1,2709.3,0.27618023]
[1730301001616,3.0,2710.2,2709.4,0.55]
[1730301001933,3.69064,2709.6,2709.5,0.27618023]
[1730301002147,3.69134,2709.1,2709.0,0.4735]
[1730301002460,3.69134,2709.1,2708.9,1.08120557]
[1730301002461,3.69139,2709.0,2708.9,0.50343005]
[1730301003362,3.69139,2709.0,2708.9,0.77977109]
[1730301003581,3.69139,2709.0,2708.9,0.50343005]
[1730301003869,4.429663,2709.0,2708.9,0.50343005]
[1730301005960,5.181363,2709.0,2708.9,0.50343005]
[1730301006355,4.44309,2709.0,2708.9,0.50343005]
[1730301008087,7.44309,2709.0,2708.9,0.50343005]
[1730301011461,10.94318216,2709.0,2708.9,0.50343005]
[1730301013893,7.44309,2709.0,2708.9,0.50343005]
[1730301020503,7.45309,2709.0,2708.9,5e-08]
[1730301021014,3.69289,2707.9,2707.8,0.52163786]
[1730301023276,3.69289,2707.9,2707.8,0.55862912]
[1730301024150,3.69289,2707.9,2707.8,0.52163786]
[1730301024484,3.69289,2707.9,2707.8,0.55862912]
[1730301024691,8.74394916,2707.9,2707.8,0.55862912]
[1730301025017,8.74394916,2707.9,2707.8,0.52163786]
[1730301026020,5.243857,2707.9,2707.8,0.52163786]
[1730301027376,11.74394916,2707.9,2707.8,0.52163786]
[1730301028775,8.243857,2707.9,2707.8,0.52163786]
[1730301030094,11.75394916,2707.9,2707.8,7.86e-06]
[1730301030493,11.76394916,2707.9,2707.8,7.86e-06]
[1730301034428,4.49414,2707.5,2707.4,5.06e-06]
[1730301034634,10.99423216,2707.5,2707.4,5.06e-06]
[1730301034836,6.69453,2706.7,2706.6,0.53984567]
[1730301035014,3.69562,2705.9,2705.8,0.38414424]
[1730301035527,3.6959,2705.7,2705.6,1.58160387]
[1730301035886,3.69603,2705.6,2705.5,0.55805348]
[1730301036432,6.69603,2705.6,2705.5,0.55805348]
[1730301038342,19.2417851,2705.6,2705.5,3.48e-06]
[1730301039484,7.44726,2704.7,2704.6,0.132316]
[1730301040137,7.46726,2704.7,2704.6,0.132316]
[1730301040487,7.45726,2704.7,2704.6,0.132316]
[1730301040832,8.136713,2704.7,2704.6,6e-06]
[1730301041434,3.71754,2704.5,2704.4,7.3e-06]
[1730301041731,11.52723216,2704.5,2704.4,7.3e-06]
[1730301041885,3.69904,2703.4,2703.3,1.06796911]
[1730301042488,3.6989,2703.5,2703.3,1.06796911]
[1730301042695,3.0,2704.0,2703.3,1.27676602]
[1730301042933,3.69866,2703.7,2703.3,1.27676602]
[1730301043709,3.69866,2703.7,2703.3,0.80326602]
[1730301043937,3.69901,2703.5,2703.3,0.59446911]
[1730301044297,7.39743,2703.7,2703.3,0.59446911]
[1730301044635,3.69871,2703.7,2703.3,0.59446911]
[1730301045014,3.69891,2703.5,2703.3,0.59446911]
[1730301045411,3.69844,2703.9,2703.3,0.80326602]
[1730301045809,3.69863,2703.7,2703.4,0.4735]
[1730301046214,3.69844,2703.9,2703.4,0.4735]
[1730301046414,3.69864,2703.7,2703.4,0.4735]
[1730301047060,3.69864,2703.7,2703.3,0.59446911]
[1730301047061,3.0,2704.0,2703.3,0.59446911]
[1730301047374,3.69904,2703.4,2703.3,0.59446911]
[1730301048323,6.69904,2703.4,2703.3,0.59446911]
[1730301049423,7.49534,2703.4,2703.3,0.59446911]
[1730301050476,7.94805502,2703.4,2703.3,9.11e-06]
[1730301050679,7.94805502,2703.4,2702.1,0.61267692]
[1730301050680,3.7,2702.7,2702.1,0.61267692]
[1730301050880,11.03265216,2702.0,2701.9,0.132316]
[1730301051052,19.10112481,2702.0,2701.9,0.132316]
[1730301051249,19.64729504,2702.0,2701.9,0.132316]
[1730301051452,20.66584339,2702.0,2701.9,6e-06]
[1730301051689,20.66584339,2702.0,2700.5,0.4735]
[1730301051690,3.70219,2701.1,2700.5,0.4735]
[1730301052052,6.70219,2701.1,2700.3,0.4735]
[1730301052259,6.70219,2701.1,2699.9,4.35285255]
[1730301052260,3.01,2701.0,2699.9,0.64909255]
[1730301052454,3.70281,2700.7,2699.9,4.14918471]
[1730301052776,3.70262,2700.8,2700.2,7.67692216]
[1730301052942,3.70246,2700.9,2700.2,3.97359216]
[1730301053137,3.70261,2700.8,2700.2,3.97359216]
[1730301053345,3.70309,2700.5,2700.3,0.40476554]
[1730301053540,3.70281,2700.7,2700.2,0.4735]
[1730301053779,3.70315,2700.4,2700.2,0.4735]
[1730301054335,3.70294,2700.6,2700.2,0.4735]
[1730301054593,3.0,2700.8,2700.2,0.4735]
[1730301054744,3.70283,2700.7,2700.2,0.4735]
[1730301055864,3.0,2701.2,2700.3,3.70316]
[1730301056065,3.0,2701.2,2700.4,4.120716]
[1730301056390,7.62009057,2701.3,2700.6,3.70284]
[1730301056605,11.32213057,2701.3,2700.4,4.120796]
[1730301056793,7.62009057,2701.3,2700.7,0.05949494]
[1730301056991,7.62009057,2701.3,2700.6,3.70285]
[1730301057294,7.62009057,2701.3,2700.7,3.7621412]
[1730301057450,7.62009057,2701.3,2700.8,3.70259]
[1730301057652,3.0,2701.2,2700.7,0.0594912]
[1730301057967,3.0,2701.2,2700.8,0.05944329]
[1730301058399,3.0,2701.2,2700.6,3.70277]
[1730301058599,3.0,2701.2,2700.9,0.05939538]
[1730301058754,7.62009057,2701.3,2700.8,3.7025]
[1730301058954,7.62009057,2701.3,2701.0,0.05934748]
[1730301059297,7.62009057,2701.3,2701.1,0.05926037]
[1730301059454,11.32213057,2701.3,2700.4,4.120796]
[1730301059657,7.62009057,2701.3,2700.6,3.70287]
[1730301059893,7.62009057,2701.3,2700.7,0.059452]
[1730301060113,7.62009057,2701.3,2700.6,3.70287]
[1730301060403,11.32209057,2701.3,2700.8,0.05991315]
[1730301060554,11.32209057,2701.3,2700.7,0.05996106]
[1730301060757,7.62009057,2701.3,2700.7,3.7027]
[1730301060957,7.62009057,2701.3,2700.8,0.05991315]
[1730301061196,11.32209057,2701.3,2700.5,3.70293]
[1730301061371,11.32209057,2701.3,2700.9,0.05986524]
[1730301061571,3.70227,2701.1,2700.3,3.70322]
[1730301061774,3.7027,2700.8,2700.2,0.4735]
[1730301061971,3.0,2700.7,2699.9,1.12259255]
[1730301062175,3.70316,2700.4,2700.1,0.57979432]
[1730301062500,3.0,2700.5,2699.9,4.82635255]
[1730301062656,3.0,2700.5,2700.0,3.70369]
[1730301062862,3.0,2700.5,2699.9,1.12259255]
[1730301063059,6.70304,2700.5,2699.9,1.12259255]
[1730301063277,3.70318,2700.4,2699.9,1.12259255]
[1730301063471,3.0,2700.5,2699.9,4.82640255]
[1730301063678,3.0,2700.7,2700.1,3.70355]
[1730301063901,5.22456911,2701.1,2699.9,1.12259255]
[1730301063902,3.0,2700.9,2700.4,3.70307]
[1730301064074,3.7877,2701.1,2700.5,3.70291]
[1730301064272,0.7998,2701.9,2700.9,4.42686911]
[1730301064492,3.70166,2701.5,2700.9,4.19239691]
[1730301064662,0.7998,2701.9,2700.7,4.17616]
[1730301064663,4.50102,2701.9,2700.7,4.17616]
[1730301064861,3.70186,2701.4,2700.7,4.17616]
[1730301065362,3.70186,2701.4,2700.7,4.17615]
[1730301065579,0.7705,2701.7,2700.3,0.4735]
[1730301065774,3.70241,2701.0,2700.3,4.17679]
[1730301066605,3.70214,2701.2,2699.9,0.64909255]
[1730301066918,7.5236,2700.0,2699.9,0.64909255]
[1730301067216,17.72329763,2700.0,2699.9,0.64909255]
[1730301067568,18.27329763,2700.0,2699.9,0.64909255]
[1730301067976,16.90333766,2700.0,2699.9,0.64909255]
[1730301068323,6.70466,2699.3,2699.2,0.132316]
[1730301068807,3.0,2699.3,2699.2,0.132316]
[1730301069515,6.70466,2699.3,2699.2,0.132316]
[1730301070168,3.0,2699.4,2699.2,0.132316]
[1730301070408,6.70459,2699.4,2699.2,0.132316]
[1730301070618,6.70454,2699.4,2699.2,0.132316]
[1730301070775,3.0,2699.3,2699.2,0.132316]
[1730301071112,6.70466,2699.3,2699.2,0.132316]
[1730301071266,3.0,2699.5,2699.2,0.132316]
[1730301071472,3.0,2699.7,2699.2,0.072316]
[1730301071812,7.62009057,2699.9,2699.3,0.05133391]
[1730301072111,7.40706,2700.2,2699.2,0.072316]
[1730301072314,3.70383,2700.0,2699.4,0.05128036]
[1730301072471,3.70356,2700.1,2699.4,0.05128036]
[1730301072664,3.70356,2700.1,2699.2,0.072316]
[1730301072867,7.62009057,2700.6,2699.7,0.7776]
[1730301072868,11.32300057,2700.6,2699.7,0.7776]
[1730301073104,3.70301,2700.5,2699.8,0.57147031]
[1730301073309,7.62009057,2700.6,2699.8,0.0510234]
[1730301073478,0.8233,2701.3,2699.8,0.0510234]
[1730301073479,3.70277,2700.7,2699.8,0.0510234]
[1730301073865,3.70309,2700.5,2699.8,0.0510234]
[1730301074511,3.70248,2700.9,2700.0,0.8186]
[1730301074711,3.0,2700.6,2700.0,0.8186]
[1730301074880,3.0,2700.8,2700.1,0.05074933]
[1730301075265,3.0,2700.6,2700.1,0.05074933]
[1730301075467,3.0,2701.1,2700.1,0.05074933]
[1730301075680,3.70302,2700.5,2700.1,0.05074933]
[1730301075888,3.70342,2700.2,2700.1,0.05074933]
[1730301076083,6.70342,2700.2,2700.1,0.05074933]
[1730301076296,3.70408,2699.8,2699.3,0.7927]
[1730301076569,3.70408,2699.8,2699.4,0.04941244]
[1730301076770,3.70438,2699.5,2699.4,0.04941244]
[1730301076972,3.70425,2699.6,2699.3,0.7927]
[1730301077219,3.70452,2699.4,2699.2,0.072316]
[1730301077371,3.70442,2699.5,2699.2,0.072316]
[1730301077577,3.0,2699.8,2699.3,0.04796559]
[1730301077578,3.70452,2699.4,2699.3,0.04796559]
[1730301077770,3.70466,2699.3,2699.2,0.072316]
[1730301078477,3.70431,2699.6,2699.2,0.072316]
[1730301078680,3.70395,2699.9,2699.2,0.12032956]
[1730301078907,3.0,2700.5,2699.5,3.70426]
[1730301079214,3.70303,2700.5,2699.7,0.7592]
[1730301079371,3.70339,2700.3,2699.7,0.7592]
[1730301079576,3.70338,2700.3,2699.8,0.04787094]
[1730301079799,7.40621,2700.5,2699.7,0.7592]
[1730301080001,3.70309,2700.5,2699.9,0.04776159]
[1730301080176,11.32309057,2700.6,2699.7,1.205538]
[1730301080376,3.70329,2700.3,2700.0,0.04770993]
[1730301080606,3.70329,2700.3,2699.7,0.7592]
[1730301080817,3.70329,2700.3,2700.1,0.0476192]
[1730301080999,3.70305,2700.5,2699.7,0.7592]
[1730301081319,3.69665,2700.5,2699.7,1.206544]
[1730301081523,3.70346,2700.2,2699.7,0.7592]
[1730301081828,7.62009057,2700.6,2699.8,0.04776116]
[1730301081829,3.7038,2700.0,2699.8,0.04776116]
[1730301081986,3.70139,2700.0,2699.8,0.04776116]
[1730301082192,3.70384,2699.9,2699.7,0.7592]
[1730301082390,3.70397,2699.8,2699.7,0.7592]
[1730301082592,3.70064,2699.9,2699.8,0.04774256]
[1730301082795,3.70064,2699.9,2699.7,0.7592]
[1730301082975,3.7037,2700.0,2699.8,0.04774256]
[1730301083171,3.7037,2700.0,2699.7,0.7592]
[1730301083423,7.40749,2700.0,2699.9,0.0477188]
[1730301083579,7.40749,2700.0,2699.2,0.072316]
[1730301083580,3.7037,2700.0,2699.8,0.04776674]
[1730301083778,3.7041,2699.8,2699.4,0.7616]
[1730301084103,3.70379,2700.0,2699.4,0.7616]
[1730301084326,3.7033,2700.3,2699.4,0.7616]
[1730301084487,3.70316,2700.4,2699.6,3.70425]
[1730301084688,3.70303,2700.5,2699.6,3.70425]
[1730301084913,3.0,2700.4,2699.6,3.70418]
[1730301085134,3.70337,2700.3,2699.5,0.446624]
[1730301085442,3.0,2700.5,2699.4,0.7616]
[1730301085443,7.40696,2700.2,2699.4,0.7616]
[1730301085595,3.70344,2700.2,2699.4,4.46611]
[1730301086029,3.70323,2700.4,2699.6,3.70424]
[1730301086209,3.70323,2700.4,2699.7,0.8034]
[1730301086413,11.32306057,2700.6,2699.7,0.8034]
[1730301086933,4.82702673,2701.0,2700.1,3.70343]
[1730301086934,3.70235,2701.0,2700.1,3.70343]
[1730301087116,3.70235,2701.0,2700.2,4.154093]
[1730301087288,3.70214,2701.2,2700.4,0.8128]
[1730301087289,7.40428,2701.2,2700.4,0.8128]
[1730301087483,3.70214,2701.2,2700.4,4.51584]
[1730301087689,3.70195,2701.3,2700.5,3.74881745]
[1730301087889,3.70195,2701.3,2700.5,0.04587745]
[1730301088114,3.70195,2701.3,2700.5,0.50204919]
[1730301088488,3.0,2701.2,2700.5,0.50204919]
[1730301088684,7.62009057,2701.7,2700.8,0.8319]
[1730301088945,3.70065,2702.3,2701.4,3.70175]
[1730301089089,7.62009057,2702.5,2701.4,0.370175]
[1730301089284,3.70041,2702.4,2701.2,0.01]